fUSD/lending_fUSD_20250606
["ID","MTS","AMOUNT","RATE_DAILY","PERIOD"]
[364719686,1749217841882,-503.11151744,0.00030153,2]
[364719689,1749217841891,-500.0,0.00030153,2]
[364719692,1749217841900,-500.0,0.00030153,2]
[364719695,1749217841909,-500.0,0.00030153,2]
[364719698,1749217841918,-500.0,0.00030153,2]
[364719701,1749217841928,-500.0,0.00030153,2]
[364719704,1749217841937,-500.0,0.00030153,2]
[364719706,1749217841947,-500.0,0.00030153,2]
[364719709,1749217841956,-564.68454639,0.00030153,2]
[364719712,1749217841965,-500.0,0.00030153,2]
[364719715,1749217841974,-500.0,0.00030153,2]
[364719718,1749217841984,-627.29900013,0.00030153,2]
[364719721,1749217841993,-500.0,0.00030153,2]
[364719724,1749217842002,-500.0,0.00030153,2]
[364719727,1749217842012,-500.0,0.00030153,2]
[364719730,1749217842021,-167744.44189665,0.00030154,2]
[364719903,1749217843314,-627.10425443,0.00030154,2]
[364719936,1749217843636,-27870.51082423,0.00030154,2]
[364720182,1749217846498,-544.74999332,0.00030154,2]
[364720189,1749217846559,-5013.03281276,0.00030154,2]
[364720191,1749217846571,-4343.09858,0.00030154,2]
[364720202,1749217846674,-2495.6,0.00030154,2]
[364720204,1749217846687,-155787.15121361,0.00030154,2]
[364720206,1749217846698,-10262.70625367,0.00030154,2]
[364720211,1749217846736,-2853.97462857,0.00030154,2]
[364720293,1749218022042,3465.0,0.00035616,120]
[364720295,1749218264031,200.0,0.00035616,120]
[364720304,1749218466260,165.49,0.00028761,120]
[364720306,1749218519448,150.16,0.00013699,2]
[364720308,1749218616142,439.20919327,0.00035616,120]
[364720316,1749218792211,-150.0,0.00021918,2]
[364720319,1749218815906,-500.0,0.00028564,30]
[364720333,1749218916670,2116.0,0.00035616,120]
[364720339,1749219019528,-223.0,0.00023,7]
[364720340,1749219019558,-223.0,0.00023288,7]
[364720341,1749219019585,-223.0,0.00024164,7]
[364720342,1749219019617,-230.0,0.00025373,7]
[364720353,1749219031530,-0.16,0.00021918,2]
[364720354,1749219031540,-273.9518893,0.00026497,2]
[364720355,1749219031551,-307.3181107,0.00026497,2]
[364720356,1749219031560,-223.0,0.00027064,7]
[364720357,1749219031570,-200.0,0.000271,2]
[364720358,1749219031579,-79.5708893,0.00027734,2]
[364720359,1749219031687,-124.4291107,0.00027734,2]
[364720360,1749219031697,-300.0,0.00028187,2]
[364720361,1749219031706,-538.4569945,0.00028187,2]
[364720362,1749219031767,-145.5430055,0.00028187,2]
[364720363,1749219031779,-400.0,0.00028188,13]
[364720364,1749219031789,-322.7375198,0.00028188,13]
[364720365,1749219031803,-77.2624802,0.00028188,13]
[364720366,1749219031812,-400.0,0.00028188,13]
[364720367,1749219031822,-100.57241531,0.00028188,13]
[364720685,1749219037601,-299.42758469,0.00028188,13]
[364720686,1749219037611,-400.0,0.00028188,13]
[364720687,1749219037622,-237.50841531,0.00028188,13]
[364720688,1749219037698,-162.49158469,0.00028188,13]
[364720689,1749219037707,-117.17398456,0.00028188,13]
[364720795,1749219040044,-282.82601544,0.00028188,13]
[364720796,1749219040055,-400.0,0.00028188,13]
[364720797,1749219040064,-400.0,0.00028188,13]
[364720798,1749219040074,-400.0,0.00028188,13]
[364720799,1749219040084,-400.0,0.00028188,13]
[364720800,1749219040093,-400.0,0.00028188,13]
[364720801,1749219040102,-400.0,0.00028188,13]
[364720803,1749219040111,-400.0,0.00028188,13]
[364720804,1749219040121,-400.0,0.00028188,13]
[364720805,1749219040131,-400.0,0.00028188,13]
[364720806,1749219040141,-400.0,0.00028188,13]
[364720807,1749219040151,-199.64,0.0002846,2]
[364720808,1749219040160,-153.28,0.00028491,2]
[364720810,1749219040170,-219.15021834,0.00028494,2]
[364720812,1749219040179,-1254.0,0.00028533,2]
[364720814,1749219040189,-1158.0,0.00028533,2]
[364720815,1749219040198,-1000.0,0.00028553,2]
[364720816,1749219040211,-150.0,0.00028556,2]
[364720817,1749219040224,-179.6,0.00028564,30]
[364720818,1749219040238,-250.0,0.00028588,2]
[364720819,1749219040250,-1500.0,0.00028632,2]
[364720821,1749219040260,-150.0,0.00028667,3]
[364720822,1749219040270,-221.92,0.00028736,2]
[364720823,1749219040279,-166.48,0.00028738,2]
[364720824,1749219040289,-738.02069905,0.0002874,30]
[364720825,1749219040299,-223.0,0.00028756,14]
[364720826,1749219040308,-6051.84,0.00028761,2]
[364720827,1749219040318,-1000.0,0.00028761,2]
[364720828,1749219040327,-3158.91,0.00028761,2]
[364720829,1749219040337,-581.27,0.00028761,2]
[364720830,1749219040346,-151.0,0.00028764,2]
[364720831,1749219040356,-1037.0,0.00028764,2]
[364720832,1749219040367,-151.0,0.00028764,2]
[364720833,1749219040376,-300.0,0.00028764,2]
[364720834,1749219040385,-182.79555718,0.00028764,2]
[364720835,1749219040526,-400.0,0.00028188,13]
[364720836,1749219040536,-24.60444282,0.00028764,2]
[364720837,1749219040545,-153.35,0.00028778,4]
[364720838,1749219040555,-100.94555743,0.00028781,2]
[364720872,1749219042863,-400.0,0.00028188,13]
[364720873,1749219042873,-117.83999656,0.00028188,13]
[364720884,1749219045532,-282.16000344,0.00028188,13]
[364720885,1749219045542,-400.0,0.00028188,13]
[364720887,1749219045551,-400.0,0.00028188,13]
[364720889,1749219045561,-400.0,0.00028188,13]
[364720890,1749219045571,-9.33156251,0.00028188,13]
[364720891,1749219045582,-390.66843749,0.00028188,13]
[364720892,1749219045592,-400.0,0.00028188,13]
[364720893,1749219045601,-400.0,0.00028188,13]
[364720894,1749219045610,-400.0,0.00028188,13]
[364720895,1749219045621,-288.17671798,0.00028188,13]
[364720896,1749219045720,-111.82328202,0.00028188,13]
[364720897,1749219045729,-400.0,0.00028188,13]
[364720898,1749219045738,-400.0,0.00028188,13]
[364720899,1749219045748,-400.0,0.00028188,13]
[364720900,1749219045758,-9141.35563798,0.00028781,2]
[364720901,1749219045784,-992.14502765,0.00028781,2]
[364720902,1749219045831,-13665.55377694,0.00028781,2]
[364720903,1749219045840,-250.0,0.00028795,2]
[364720904,1749219045851,-168.78,0.00028796,2]
[364720905,1749219045860,-1000.0,0.00028834,2]
[364720906,1749219045870,-738.02069905,0.00028849,30]
[364720907,1749219045879,-203.09055281,0.000289,20]
[364720914,1749219177774,-738.02069905,0.00028959,30]
[364720915,1749219177804,-261.97930095,0.00029,30]
[364720916,1749219178832,-1000.0,0.00029,30]
[364720917,1749219179638,-586.24244715,0.00029,30]
[364720918,1749219179667,-413.75755285,0.00029068,30]
[364720919,1749219180450,-324.2631462,0.00029068,30]
[364720921,1749219204981,200.0,0.00035616,120]
[364720922,1749219208496,-400.0,0.00028188,13]
[364720923,1749219208525,-400.0,0.00028188,13]
[364720924,1749219208552,-200.0,0.00028188,13]
[364720925,1749219220739,-200.0,0.00028188,13]
[364720926,1749219220768,-400.0,0.00028188,13]
[364720939,1749219615558,-150.0,0.00021407,2]
[364720940,1749219615582,-150.0,0.00021407,2]
[364720941,1749219615604,-150.0,0.00021407,2]
[364720942,1749219615627,-800.0,0.00022478,4]
[364720943,1749219615650,-800.0,0.00023548,4]
[364720944,1749219615673,-250.0,0.00023548,2]
[364720945,1749219615696,-800.0,0.00023548,4]
[364720946,1749219615718,-250.0,0.00023548,2]
[364720947,1749219615741,-202.0,0.00026734,2]
[364720948,1749219615762,-130.0,0.00026928,2]
[364720950,1749219675493,1033.0,0.00035,120]
[364720960,1749219970688,189.0,0.0003561,120]
[364720961,1749219988104,156.46,0.00013699,2]
[364721015,1749220098525,150.0,0.00021407,2]
[364721017,1749220118494,1193.24911096,0.00035616,120]
[364721019,1749220134145,200.0,0.00035616,120]
[364721039,1749220231691,-156.46,0.00021918,2]
[364721040,1749220231701,-2184.36912189,0.00023,15]
[364721041,1749220231712,-1135.21616788,0.00023,15]
[364721042,1749220231722,-903.26324775,0.00024,5]
[364721043,1749220231732,-1772.41387894,0.00024,5]
[364721044,1749220231823,-861.04287331,0.00024,5]
[364721045,1749220231832,-800.0,0.0002411,4]
[364721046,1749220231841,-137.7983545,0.0002411,2]
[364721047,1749220231852,-112.2016455,0.0002411,2]
[364721048,1749220231861,-631.28939445,0.00025841,2]
[364721049,1749220231892,-373.54821955,0.00025841,2]
[364721050,1749220231902,-279.96178045,0.00025971,2]
[364721051,1749220231917,-920.03821955,0.00025971,2]
[364721052,1749220231927,-594.83,0.00026103,2]
[364721053,1749220231937,-103.10973308,0.0002611,2]
[364721054,1749220231964,-396.89026692,0.0002611,2]
[364721055,1749220231973,-1005.68853592,0.000269,16]
[364721056,1749220231983,-209.40437684,0.00026927,2]
[364721057,1749220231991,-955.21186,0.00026928,2]
[364721059,1749220232001,-1005.68853577,0.00027141,16]
[364721061,1749220232010,-500.0,0.00027205,2]
[364721062,1749220232020,-140.39445765,0.00027383,17]
[364721063,1749220232032,-392.49680015,0.00027383,17]
[364721064,1749220232043,-472.79727797,0.00027383,17]
[364721065,1749220232052,-1005.68853577,0.00027624,17]
[364721066,1749220232062,-461.87,0.00027671,2]
[364721067,1749220232071,-150.0,0.0002772,2]
[364721068,1749220232080,-955.21187,0.0002781,2]
[364721069,1749220232090,-183.67,0.00027841,2]
[364721070,1749220232099,-1005.68853577,0.00027866,17]
[364721071,1749220232109,-500.0,0.00028099,2]
[364721072,1749220232118,-1005.68853577,0.00028107,18]
[364721073,1749220232127,-150.0,0.00028123,7]
[364721074,1749220232137,-1000.0,0.00028138,2]
[364721076,1749220232146,-199.64,0.00028148,2]
[364721078,1749220232159,-594.65,0.0002817,30]
[364721080,1749220232168,-151.0,0.00028171,2]
[364721082,1749220232178,-682.75716258,0.00028187,2]
[364721083,1749220232188,-300.0,0.00028187,2]
[364721084,1749220232197,-400.0,0.00028188,13]
[364721085,1749220232207,-400.0,0.00028188,13]
[364721086,1749220232216,-400.0,0.00028188,13]
[364721087,1749220232226,-400.0,0.00028188,13]
[364721088,1749220232236,-400.0,0.00028188,13]
[364721089,1749220232245,-400.0,0.00028188,13]
[364721090,1749220232254,-324.0,0.00028188,13]
[364721091,1749220232264,-200.0,0.00028188,2]
[364721092,1749220232273,-200.0,0.00028188,2]
[364721093,1749220232282,-200.0,0.00028188,2]
[364721094,1749220232292,-200.0,0.00028188,2]
[364721095,1749220232301,-200.0,0.00028188,2]
[364721097,1749220232310,-200.0,0.00028188,2]
[364721099,1749220232320,-200.0,0.00028188,2]
[364721101,1749220232329,-200.0,0.00028188,2]
[364721104,1749220232339,-200.0,0.00028188,2]
[364721106,1749220232348,-200.0,0.00028188,2]
[364721108,1749220232359,-200.0,0.00028188,2]
[364721110,1749220232370,-200.0,0.00028188,2]
[364721112,1749220232380,-200.0,0.00028188,2]
[364721114,1749220232389,-200.0,0.00028188,2]
[364721142,1749220232649,-200.0,0.00028188,2]
[364721144,1749220232658,-30.45359984,0.00028188,2]
[364721146,1749220232670,-169.54640016,0.00028188,2]
[364721148,1749220232680,-200.0,0.00028188,2]
[364721150,1749220232690,-200.0,0.00028188,2]
[364721152,1749220232699,-200.0,0.00028188,2]
[364721154,1749220232708,-200.0,0.00028188,2]
[364721156,1749220232717,-200.0,0.00028188,2]
[364721157,1749220232726,-105.36637996,0.00028188,2]
[364721161,1749220232750,-94.63362004,0.00028188,2]
[364721163,1749220232760,-200.0,0.00028188,2]
[364721165,1749220232769,-108.1723242,0.00028188,2]
[364721626,1749220237632,-91.8276758,0.00028188,2]
[364721628,1749220237644,-175.92359051,0.00028188,2]
[364721631,1749220237664,-171.07640949,0.00028188,2]
[364721633,1749220237676,-400.0,0.00028188,13]
[364721635,1749220237688,-400.0,0.00028188,13]
[364721636,1749220237699,-400.0,0.00028188,13]
[364721637,1749220237711,-291.0,0.00028188,13]
[364721638,1749220237722,-400.0,0.00028188,13]
[364721639,1749220237733,-400.0,0.00028188,13]
[364721640,1749220237745,-400.0,0.00028188,13]
[364721641,1749220237758,-400.0,0.00028188,13]
[364721642,1749220237770,-400.0,0.00028188,13]
[364721643,1749220237781,-400.0,0.00028188,13]
[364721644,1749220237792,-400.0,0.00028188,13]
[364721645,1749220237804,-400.0,0.00028188,13]
[364721646,1749220237815,-400.0,0.00028188,13]
[364721647,1749220237827,-402.0,0.00028188,13]
[364721648,1749220237839,-400.0,0.00028188,13]
[364721649,1749220237850,-400.0,0.00028188,13]
[364721650,1749220237862,-400.0,0.00028188,13]
[364721652,1749220237874,-400.0,0.00028188,13]
[364721654,1749220237885,-400.0,0.00028188,13]
[364721656,1749220237897,-400.0,0.00028188,13]
[364721658,1749220237911,-400.0,0.00028188,13]
[364721660,1749220237922,-400.0,0.00028188,13]
[364721663,1749220237938,-400.0,0.00028188,13]
[364721665,1749220237950,-200.0,0.00028188,2]
[364721667,1749220237961,-200.0,0.00028188,2]
[364721669,1749220237973,-200.0,0.00028188,2]
[364721671,1749220237984,-400.0,0.00028188,13]
[364721674,1749220237996,-400.0,0.00028188,13]
[364721676,1749220238007,-98.08256398,0.00028188,13]
[364721696,1749220238149,-301.91743602,0.00028188,13]
[364721699,1749220238164,-400.0,0.00028188,13]
[364721701,1749220238176,-400.0,0.00028188,13]
[364721703,1749220238187,-400.0,0.00028188,13]
[364721705,1749220238199,-200.0,0.00028188,2]
[364721708,1749220238212,-200.0,0.00028188,2]
[364721710,1749220238223,-200.0,0.00028188,2]
[364721712,1749220238235,-200.0,0.00028188,2]
[364721714,1749220238247,-200.0,0.00028188,2]
[364721717,1749220238258,-200.0,0.00028188,2]
[364721719,1749220238270,-200.0,0.00028188,2]
[364721721,1749220238282,-1680.0,0.00028232,2]
[364721723,1749220238294,-1000.0,0.00028287,2]
[364721726,1749220238305,-1005.68853577,0.00028348,18]
[364721728,1749220238318,-594.83,0.00028366,2]
[364721730,1749220238330,-1000.0,0.0002841,2]
[364721732,1749220238342,-174.97167064,0.00028427,2]
[364721735,1749220238353,-150.0,0.00028464,2]
[364721737,1749220238367,-202.0,0.00028506,2]
[364721739,1749220238382,-205.0,0.00028506,2]
[364721741,1749220238393,-150.0,0.00028532,2]
[364721743,1749220238407,-1005.68853577,0.0002859,19]
[364721745,1749220238419,-300.0,0.000286,10]
[364721747,1749220238430,-150.0,0.00028633,2]
[364721750,1749220238443,-150.0,0.00028674,2]
[364721752,1749220238456,-150.0,0.00028692,2]
[364721754,1749220238468,-700.0,0.000287,10]
[364721757,1749220238480,-2030.29667201,0.00028739,2]
[364721759,1749220238492,-207.4,0.00028739,2]
[364721761,1749220238503,-500.0,0.00028739,2]
[364721763,1749220238514,-151.0,0.00028739,2]
[364721765,1749220238526,-1000.0,0.00028769,2]
[364721768,1749220238537,-1100.0,0.000288,10]
[364721770,1749220238550,-150.0,0.00028827,2]
[364721772,1749220238561,-1005.68853577,0.00028831,19]
[364721774,1749220238573,-1500.0,0.000289,10]
[364721776,1749220238592,-282.0,0.00028907,2]
[364721779,1749220238604,-681889.30197563,0.0002898,4]
[364721781,1749220238617,-168584.34034585,0.0002898,4]
[364721784,1749220238631,-463.02420035,0.0002898,4]
[364721786,1749220238645,-5229.0,0.0002898,4]
[364721792,1749220238687,-6247972.0677315,0.0002898,4]
[364721794,1749220238699,-624.39641845,0.0002898,2]
[364721796,1749220238710,-15820.79431541,0.0002898,2]
[364721798,1749220238721,-300.0,0.0002899,2]
[364721800,1749220238733,-223.0,0.00028997,14]
[364721803,1749220238749,-23432.42082558,0.00029,4]
[364721804,1749220238764,-9025.23939096,0.00029,2]
[364721807,1749220238774,-156.36,0.00029,2]
[364721809,1749220238785,-1000.0,0.00029,3]
[364721811,1749220238796,-1000.0,0.00029,4]
[364721813,1749220238807,-1154.8601326,0.00029,5]
[364721815,1749220238818,-46080.77487318,0.00029,2]
[364721818,1749220238829,-620.7,0.00029009,20]
[364721820,1749220238841,-231.79,0.00029009,12]
[364721822,1749220238851,-805.49,0.00029009,2]
[364721824,1749220238862,-15820.79431537,0.00029013,2]
[364721826,1749220238873,-1000.0,0.00029037,2]
[364721829,1749220238885,-15820.79431537,0.00029046,2]
[364721831,1749220238897,-955.21187,0.0002906,2]
[364721833,1749220238909,-403.27,0.00029068,2]
[364721835,1749220238919,-403.27,0.00029068,2]
[364721838,1749220238931,-1005.68853577,0.00029072,20]
[364721840,1749220238942,-172.17,0.00029077,2]
[364721842,1749220238953,-172.17,0.00029077,2]
[364721844,1749220238964,-82959.4122966,0.00029078,2]
[364721846,1749220238975,-15820.79431537,0.00029079,2]
[364721849,1749220238986,-150.0,0.0002908,2]
[364721851,1749220238997,-16591.87,0.0002908,2]
[364721853,1749220239008,-15820.79431537,0.00029112,2]
[364721855,1749220239018,-150.0,0.00029123,2]
[364721857,1749220239030,-150.0,0.00029141,2]
[364721860,1749220239041,-15820.79431537,0.00029146,2]
[364721862,1749220239053,-738.02069905,0.00029178,30]
[364721864,1749220239064,-15820.79431537,0.00029179,2]
[364721867,1749220239076,-15820.79431537,0.00029212,2]
[364721869,1749220239088,-150.0,0.00029219,2]
[364721871,1749220239099,-235.40817548,0.00029268,2]
[364721873,1749220239108,-403.27,0.00029268,2]
[364721875,1749220239118,-5323.03729436,0.00029278,2]
[364721877,1749220239127,-5849.89981064,0.00029278,2]
[364721879,1749220239136,-193.66689883,0.00029278,5]
[364721881,1749220239146,-1788.18584385,0.00029278,2]
[364721883,1749220239156,-266997.02661318,0.00029278,2]
[364721885,1749220239165,-168.35381065,0.00029278,2]
[364721887,1749220239175,-614.47547138,0.0002929,18]
[364721889,1749220239185,-1005.68853577,0.00029314,20]
[364721891,1749220239194,-738.02069905,0.00029315,30]
[364721893,1749220239203,-469.09,0.00029324,2]
[364721895,1749220239213,-21911.0,0.00029342,2]
[364721897,1749220239223,-152.19,0.00029368,2]
[364721899,1749220239233,-152.19,0.00029368,2]
[364721901,1749220239243,-152.19,0.00029368,2]
[364721904,1749220239253,-152.19,0.00029368,2]
[364721906,1749220239263,-152.19,0.00029368,2]
[364721908,1749220239272,-152.19,0.00029368,2]
[364721909,1749220239281,-152.19,0.00029368,2]
[364721911,1749220239291,-403.27,0.00029368,2]
[364721913,1749220239300,-152.19,0.00029368,2]
[364721915,1749220239309,-152.19,0.00029368,2]
[364721917,1749220239319,-403.27,0.00029368,2]
[364721965,1749220239748,-152.19,0.00029368,2]
[364721970,1749220239788,-152.19,0.00029368,2]
[364721973,1749220239812,-152.19,0.00029368,2]
[364721976,1749220239823,-152.19,0.00029368,2]
[364721978,1749220239832,-152.19,0.00029368,2]
[364721980,1749220239841,-152.19,0.00029368,2]
[364721982,1749220239852,-152.19,0.00029368,2]
[364721984,1749220239861,-152.19,0.00029368,2]
[364721986,1749220239870,-152.19,0.00029368,2]
[364721988,1749220239879,-152.19,0.00029368,2]
[364721990,1749220239888,-152.19,0.00029368,2]
[364721991,1749220239897,-152.19,0.00029368,2]
[364721994,1749220239908,-152.19,0.00029369,2]
[364721995,1749220239917,-799.33893387,0.00029369,2]
[364721997,1749220239926,-500.0,0.00029373,5]
[364721999,1749220239935,-500.0,0.00029373,5]
[364722001,1749220239945,-501.67025485,0.00029373,5]
[364722004,1749220239954,-500.0,0.00029373,5]
[364722006,1749220239963,-265.95345906,0.00029373,5]
[364722007,1749220239973,-500.0,0.00029373,5]
[364722009,1749220239982,-500.0,0.00029373,3]
[364722011,1749220239991,-500.0,0.00029373,5]
[364722013,1749220240001,-500.0,0.00029373,2]
[364722016,1749220240010,-500.0,0.00029373,5]
[364722017,1749220240019,-156.62280236,0.00029373,5]
[364722019,1749220240028,-500.0,0.00029373,3]
[364722021,1749220240037,-500.0,0.00029373,5]
[364722023,1749220240047,-500.0,0.00029373,5]
[364722025,1749220240056,-300.0,0.00029377,10]
[364722027,1749220240065,-666.0,0.00029377,10]
[364722029,1749220240074,-987.30935473,0.00029378,2]
[364722031,1749220240083,-150.0,0.00029378,2]
[364722033,1749220240092,-318.11274148,0.00029379,10]
[364722035,1749220240101,-500.0,0.00029379,2]
[364722037,1749220240110,-150.0,0.00029379,2]
[364722039,1749220240119,-385742.476904,0.0002938,2]
[364722041,1749220240129,-345799.142495,0.0002938,2]
[364722043,1749220240139,-1000.0,0.00029388,2]
[364722045,1749220240148,-300.0,0.00029389,10]
[364722047,1749220240158,-9203.34,0.00029389,7]
[364722049,1749220240167,-9203.34,0.00029389,7]
[364722051,1749220240177,-9203.34,0.00029389,7]
[364722053,1749220240186,-9203.34,0.00029389,7]
[364722055,1749220240196,-9203.34,0.00029389,7]
[364722057,1749220240206,-9203.34,0.00029389,7]
[364722059,1749220240225,-9203.34,0.00029389,7]
[364722061,1749220240248,-9203.34,0.00029389,7]
[364722064,1749220240266,-9203.34,0.00029389,7]
[364722066,1749220240279,-372.47416392,0.00029389,2]
[364722068,1749220240289,-419.64898956,0.00029389,2]
[364722070,1749220240299,-188.18341736,0.00029389,2]
[364722072,1749220240308,-501.51135237,0.00029389,2]
[364722074,1749220240318,-500.0,0.00029389,2]
[364722076,1749220240328,-167.17381986,0.00029389,2]
[364722078,1749220240338,-162.523784,0.0002939,2]
[364722080,1749220240348,-235.40817548,0.00029405,2]
[364722082,1749220240361,-500.0,0.00029406,2]
[364722084,1749220240373,-738.02069905,0.00029425,30]
[364722087,1749220240384,-150.0,0.00029434,2]
[364722089,1749220240393,-152.0,0.00029462,3]
[364722091,1749220240404,-502.36872942,0.00029473,5]
[364722093,1749220240415,-504.41815317,0.00029473,5]
[364722095,1749220240424,-5585.52564887,0.00029473,4]
[364722097,1749220240434,-300.0,0.00029477,10]
[364722099,1749220240445,-500.0,0.00029477,7]
[364722101,1749220240456,-500.0,0.00029477,7]
[364722103,1749220240465,-500.80163007,0.00029477,7]
[364722105,1749220240475,-9203.34,0.00029477,7]
[364722107,1749220240485,-9203.34,0.00029477,7]
[364722109,1749220240494,-9203.34,0.00029477,7]
[364722111,1749220240505,-434.67087068,0.00029483,2]
[364722113,1749220240514,-19060.9448275,0.0002949,2]
[364722115,1749220240524,-150.0,0.00029498,2]
[364722117,1749220240535,-150.0,0.00029503,2]
[364722119,1749220240546,-150.0,0.00029504,2]
[364722121,1749220240555,-1000.0,0.00029508,2]
[364722123,1749220240564,-738.02069905,0.00029534,30]
[364722125,1749220240574,-235.40817548,0.00029542,2]
[364722126,1749220240583,-1005.68853577,0.00029555,21]
[364722128,1749220240593,-605.932663,0.00029578,6]
[364722131,1749220240603,-150.0,0.00029628,2]
[364722133,1749220240612,-738.02069905,0.00029644,30]
[364722135,1749220240622,-235.40817548,0.00029679,2]
[364722137,1749220240631,-9203.34,0.00029684,7]
[364722138,1749220240641,-150.0,0.00029697,2]
[364722141,1749220240651,-1000.0,0.000297,2]
[364722142,1749220240662,-1000.0,0.000297,2]
[364722145,1749220240671,-150.0,0.00029701,2]
[364722147,1749220240682,-671.0,0.00029717,5]
[364722149,1749220240691,-150.0,0.00029735,2]
[364722151,1749220240700,-150.0,0.00029745,2]
[364722153,1749220240711,-738.02069905,0.00029753,30]
[364722154,1749220240720,-1005.68853577,0.00029797,21]
[364722156,1749220240730,-150.0,0.000298,2]
[364722159,1749220240741,-1800.0,0.000298,10]
[364722160,1749220240751,-1000.0,0.000298,2]
[364722163,1749220240760,-369.1473659,0.00029801,2]
[364722165,1749220240770,-150.0,0.00029814,2]
[364722167,1749220240780,-463.18736953,0.00029832,2]
[364722168,1749220240789,-738.02069905,0.0002989,30]
[364722171,1749220240800,-2897.0,0.00029897,10]
[364722173,1749220240810,-2883.65411681,0.00029899,12]
[364722174,1749220240820,-300.0,0.000299,10]
[364722177,1749220240830,-18269.51474014,0.000299,2]
[364722179,1749220240839,-16591.87,0.000299,2]
[364722180,1749220240848,-1000.0,0.00029907,2]
[364722182,1749220240857,-150.0,0.00029915,2]
[364722184,1749220240866,-434.67087066,0.00029916,2]
[364722186,1749220240876,-1000.0,0.00029921,5]
[364722188,1749220240885,-503.81434299,0.00029921,5]
[364722190,1749220240896,-1000.0,0.00029921,5]
[364722192,1749220240906,-1000.0,0.00029921,3]
[364722194,1749220240916,-671.71032806,0.00029921,5]
[364722196,1749220240925,-1000.0,0.00029921,2]
[364722198,1749220240936,-1000.0,0.00029921,5]
[364722199,1749220240945,-1000.0,0.00029921,5]
[364722200,1749220240954,-1000.0,0.00029921,5]
[364722201,1749220240964,-500.0,0.00029921,7]
[364722202,1749220240973,-150.0,0.00029922,2]
[364722203,1749220240982,-5000.0,0.0002993,2]
[364722204,1749220240991,-5000.0,0.0002993,3]
[364722205,1749220241001,-4351.9273244,0.0002993,4]
[364722206,1749220241010,-150.0,0.0002993,2]
[364722207,1749220241020,-500.0,0.0002993,7]
[364722208,1749220241029,-647.20709056,0.0002993,7]
[364722210,1749220241038,-300.0,0.00029931,10]
[364722211,1749220241048,-13811.04979176,0.00029932,2]
[364722212,1749220241057,-500.0,0.00029932,2]
[364722213,1749220241066,-4186.1101,0.00029932,2]
[364722214,1749220241076,-106667.5056,0.00029932,2]
[364722216,1749220241085,-1000.0,0.00029932,2]
[364722218,1749220241094,-9203.34,0.00029966,7]
[364722220,1749220241104,-21602.03030766,0.00029967,2]
[364722222,1749220241113,-500.0,0.00029973,5]
[364722224,1749220241123,-500.27068717,0.00029973,5]
[364722226,1749220241133,-500.0,0.00029973,5]
[364722228,1749220241143,-500.0,0.00029973,5]
[364722230,1749220241153,-500.0,0.00029973,5]
[364722232,1749220241163,-500.0,0.00029973,5]
[364722234,1749220241173,-159.78811227,0.00029973,5]
[364722236,1749220241183,-508.02161837,0.00029973,5]
[364722238,1749220241193,-501.2147058,0.00029973,5]
[364722240,1749220241203,-150.0,0.00029987,2]
[364722242,1749220241213,-150.0,0.00029988,2]
[364722244,1749220241222,-230.2904433,0.0002999,2]
[364722246,1749220241232,-2500.0,0.00029999,3]
[364722248,1749220241242,-735.4138949,0.00029999,2]